{"text_format":"1","workbook":"xlsx","n_sheets":2,"sheets":["Mehl","Mehlkosten"],"not_rendered":{"charts":0,"images":0,"macros":1,"external_links":0,"defined_names":4,"comments":0,"pivot_tables":0},"unopened":[],"bounds":{"document_bytes":16777216,"sheet_cells":100000,"rows_first":2000,"rows_last":500,"rows_between":2000,"halvings":0,"cell_chars":16384,"cell_head_chars":4096},"cells_cut":0,"cells_raw":0,"read":"whole","date_system":"1900"}

{"sheet":"Mehl","index":0,"n_rows":23,"n_cols":9,"rows_kept":23,"cut":false,"hidden":false,"merged":[]}
[null,"Bäckerei Artikel",null,null,null,null,null,"Mehlkosten"]
[null,"Mablu",{"$f":"SUBTOTAL(109,DB_5[Anzahl])","v":4},"Backwaren Anzahl",null,null,null,"Art.","Preis"]
["Nr.","Backwaren","Anzahl","Datum","Preis",null,null,{"$f":"B4","v":"Zopf-Weissmehl Typ 400  5 Kg."},4.5]
[1,"Zopf-Weissmehl Typ 400  5 Kg.",1,"2026-04-15T12:08:46",{"$f":"I3","v":4.5},null,null,{"$f":"B5","v":"Brotmehl 1 Kg dunkel"},3.5]
[2,"Brotmehl 1 Kg dunkel",1,"2026-04-17T10:36:56",{"$f":"I4","v":3.5},null,null,"Weissmehl 500 gr.",2.4500000000000002]
[3,"Weissmehl 500 gr.",2,"2026-04-17T10:38:50",2.4500000000000002,null,null,0]
[4,null,null,null,0,null,null,0]
[5,null,null,null,0,null,null,0]
[6,null,null,null,0,null,null,0]
[7,null,null,null,0,null,null,0]
[8,null,null,null,0,null,null,0]
[9,null,null,null,0,null,null,0]
[10,null,null,null,0,null,null,0]
[11,null,null,null,0,null,null,0]
[12,null,null,null,0,null,null,0]
[13,null,null,null,0,null,null,0]
[14,null,null,null,0,null,null,0]
[15,null,null,null,0,null,null,0]
[16,null,null,null,0,null,null,0]
[17,null,null,null,0,null,null,0]
[18,null,null,null,0,null,null,0]
[19,null,null,null,0,null,null,0]
[20,null,null,null,0,null,null,0]

{"sheet":"Mehlkosten","index":1,"n_rows":23,"n_cols":14,"rows_kept":23,"cut":false,"hidden":false,"merged":[[0,1,0,4],[0,7,0,9]]}
[null,"Gebacken am",null,null,null,null,null,"Auswertung:",null,null,null,"am meisten Gebacken am Tag:"]
[null,null,null,null,null,null,null,"Meist gebacken      ",{"$f":"MAX(AAA_8[Anzahl])","v":2}]
[null,"Mehl","Datum","User","Wert","Preis",null,"Mehlkosten","Anzahl","Rang.Gleich",null,"Wochentage","Anzahl","Rang"]
[null,"zopf","2026-04-15T11:22:53","Martin",1,null,null,{"$f":"DB_5[[#This Row],[Backwaren]]","v":"Zopf-Weissmehl Typ 400  5 Kg."},{"$f":"SUMIF(DBS_2[],AAA_8[[#This Row],[Mehlkosten]],DBS_2[Wert])","v":0},{"$f":"_xlfn.RANK.EQ(AAA_8[[#This Row],[Anzahl]],AAA_8[Anzahl],0)","v":3},null,"Montag",{"$f":"SUM(IF(WEEKDAY(DBS_2[Datum])=2,1,0))","v":0},{"$f":"_xlfn.RANK.EQ(CCC_9[[#This Row],[Anzahl]],CCC_9[Anzahl],0)","v":3}]
[null,"Brotmehl 1 Kg dunkel","2026-04-17T10:36:56","Martin",1,null,null,{"$f":"DB_5[[#This Row],[Backwaren]]","v":"Brotmehl 1 Kg dunkel"},{"$f":"SUMIF(DBS_2[],AAA_8[[#This Row],[Mehlkosten]],DBS_2[Wert])","v":1},{"$f":"_xlfn.RANK.EQ(AAA_8[[#This Row],[Anzahl]],AAA_8[Anzahl],0)","v":2},null,"Dienstag",{"$f":"SUM(IF(WEEKDAY(DBS_2[Datum])=3,1,0))","v":0},{"$f":"_xlfn.RANK.EQ(CCC_9[[#This Row],[Anzahl]],CCC_9[Anzahl],0)","v":3}]
[null,"Weissmehl 500 gr.","2026-04-17T10:36:57","Martin",1,null,null,{"$f":"DB_5[[#This Row],[Backwaren]]","v":"Weissmehl 500 gr."},{"$f":"SUMIF(DBS_2[],AAA_8[[#This Row],[Mehlkosten]],DBS_2[Wert])","v":2},{"$f":"_xlfn.RANK.EQ(AAA_8[[#This Row],[Anzahl]],AAA_8[Anzahl],0)","v":1},null,"Mittwoch",{"$f":"SUM(IF(WEEKDAY(DBS_2[Datum])=4,1,0))","v":1},{"$f":"_xlfn.RANK.EQ(CCC_9[[#This Row],[Anzahl]],CCC_9[Anzahl],0)","v":2}]
[null,"Weissmehl 500 gr.","2026-04-17T10:38:50","Martin",1,null,null,{"$f":"DB_5[[#This Row],[Backwaren]]","v":0},{"$f":"SUMIF(DBS_2[],AAA_8[[#This Row],[Mehlkosten]],DBS_2[Wert])","v":0},{"$f":"_xlfn.RANK.EQ(AAA_8[[#This Row],[Anzahl]],AAA_8[Anzahl],0)","v":3},null,"Donnerstag",{"$f":"SUM(IF(WEEKDAY(DBS_2[Datum])=5,1,0))","v":0},{"$f":"_xlfn.RANK.EQ(CCC_9[[#This Row],[Anzahl]],CCC_9[Anzahl],0)","v":3}]
[null,null,null,null,null,null,null,{"$f":"DB_5[[#This Row],[Backwaren]]","v":0},{"$f":"SUMIF(DBS_2[],AAA_8[[#This Row],[Mehlkosten]],DBS_2[Wert])","v":0},{"$f":"_xlfn.RANK.EQ(AAA_8[[#This Row],[Anzahl]],AAA_8[Anzahl],0)","v":3},null,"Freitag",{"$f":"SUM(IF(WEEKDAY(DBS_2[Datum])=6,1,0))","v":3},{"$f":"_xlfn.RANK.EQ(CCC_9[[#This Row],[Anzahl]],CCC_9[Anzahl],0)","v":1}]
[null,null,null,null,null,null,null,{"$f":"DB_5[[#This Row],[Backwaren]]","v":0},{"$f":"SUMIF(DBS_2[],AAA_8[[#This Row],[Mehlkosten]],DBS_2[Wert])","v":0},{"$f":"_xlfn.RANK.EQ(AAA_8[[#This Row],[Anzahl]],AAA_8[Anzahl],0)","v":3},null,"Samstag",{"$f":"SUM(IF(WEEKDAY(DBS_2[Datum])=7,1,0))","v":0},{"$f":"_xlfn.RANK.EQ(CCC_9[[#This Row],[Anzahl]],CCC_9[Anzahl],0)","v":3}]
[null,null,null,null,null,null,null,{"$f":"DB_5[[#This Row],[Backwaren]]","v":0},{"$f":"SUMIF(DBS_2[],AAA_8[[#This Row],[Mehlkosten]],DBS_2[Wert])","v":0},{"$f":"_xlfn.RANK.EQ(AAA_8[[#This Row],[Anzahl]],AAA_8[Anzahl],0)","v":3},null,"Sonntag",{"$f":"SUM(IF(WEEKDAY(DBS_2[Datum])=1,1,0))","v":0},{"$f":"_xlfn.RANK.EQ(CCC_9[[#This Row],[Anzahl]],CCC_9[Anzahl],0)","v":3}]
[null,null,null,null,null,null,null,{"$f":"DB_5[[#This Row],[Backwaren]]","v":0},{"$f":"SUMIF(DBS_2[],AAA_8[[#This Row],[Mehlkosten]],DBS_2[Wert])","v":0},{"$f":"_xlfn.RANK.EQ(AAA_8[[#This Row],[Anzahl]],AAA_8[Anzahl],0)","v":3}]
[null,null,null,null,null,null,null,{"$f":"DB_5[[#This Row],[Backwaren]]","v":0},{"$f":"SUMIF(DBS_2[],AAA_8[[#This Row],[Mehlkosten]],DBS_2[Wert])","v":0},{"$f":"_xlfn.RANK.EQ(AAA_8[[#This Row],[Anzahl]],AAA_8[Anzahl],0)","v":3}]
[null,null,null,null,null,null,null,{"$f":"DB_5[[#This Row],[Backwaren]]","v":0},{"$f":"SUMIF(DBS_2[],AAA_8[[#This Row],[Mehlkosten]],DBS_2[Wert])","v":0},{"$f":"_xlfn.RANK.EQ(AAA_8[[#This Row],[Anzahl]],AAA_8[Anzahl],0)","v":3}]
[null,null,null,null,null,null,null,{"$f":"DB_5[[#This Row],[Backwaren]]","v":0},{"$f":"SUMIF(DBS_2[],AAA_8[[#This Row],[Mehlkosten]],DBS_2[Wert])","v":0},{"$f":"_xlfn.RANK.EQ(AAA_8[[#This Row],[Anzahl]],AAA_8[Anzahl],0)","v":3}]
[null,null,null,null,null,null,null,{"$f":"DB_5[[#This Row],[Backwaren]]","v":0},{"$f":"SUMIF(DBS_2[],AAA_8[[#This Row],[Mehlkosten]],DBS_2[Wert])","v":0},{"$f":"_xlfn.RANK.EQ(AAA_8[[#This Row],[Anzahl]],AAA_8[Anzahl],0)","v":3}]
[null,null,null,null,null,null,null,{"$f":"DB_5[[#This Row],[Backwaren]]","v":0},{"$f":"SUMIF(DBS_2[],AAA_8[[#This Row],[Mehlkosten]],DBS_2[Wert])","v":0},{"$f":"_xlfn.RANK.EQ(AAA_8[[#This Row],[Anzahl]],AAA_8[Anzahl],0)","v":3}]
[null,null,null,null,null,null,null,{"$f":"DB_5[[#This Row],[Backwaren]]","v":0},{"$f":"SUMIF(DBS_2[],AAA_8[[#This Row],[Mehlkosten]],DBS_2[Wert])","v":0},{"$f":"_xlfn.RANK.EQ(AAA_8[[#This Row],[Anzahl]],AAA_8[Anzahl],0)","v":3}]
[null,null,null,null,null,null,null,{"$f":"DB_5[[#This Row],[Backwaren]]","v":0},{"$f":"SUMIF(DBS_2[],AAA_8[[#This Row],[Mehlkosten]],DBS_2[Wert])","v":0},{"$f":"_xlfn.RANK.EQ(AAA_8[[#This Row],[Anzahl]],AAA_8[Anzahl],0)","v":3}]
[null,null,null,null,null,null,null,{"$f":"DB_5[[#This Row],[Backwaren]]","v":0},{"$f":"SUMIF(DBS_2[],AAA_8[[#This Row],[Mehlkosten]],DBS_2[Wert])","v":0},{"$f":"_xlfn.RANK.EQ(AAA_8[[#This Row],[Anzahl]],AAA_8[Anzahl],0)","v":3}]
[null,null,null,null,null,null,null,{"$f":"DB_5[[#This Row],[Backwaren]]","v":0},{"$f":"SUMIF(DBS_2[],AAA_8[[#This Row],[Mehlkosten]],DBS_2[Wert])","v":0},{"$f":"_xlfn.RANK.EQ(AAA_8[[#This Row],[Anzahl]],AAA_8[Anzahl],0)","v":3}]
[null,null,null,null,null,null,null,{"$f":"DB_5[[#This Row],[Backwaren]]","v":0},{"$f":"SUMIF(DBS_2[],AAA_8[[#This Row],[Mehlkosten]],DBS_2[Wert])","v":0},{"$f":"_xlfn.RANK.EQ(AAA_8[[#This Row],[Anzahl]],AAA_8[Anzahl],0)","v":3}]
[null,null,null,null,null,null,null,{"$f":"DB_5[[#This Row],[Backwaren]]","v":0},{"$f":"SUMIF(DBS_2[],AAA_8[[#This Row],[Mehlkosten]],DBS_2[Wert])","v":0},{"$f":"_xlfn.RANK.EQ(AAA_8[[#This Row],[Anzahl]],AAA_8[Anzahl],0)","v":3}]
[null,null,null,null,null,null,null,{"$f":"DB_5[[#This Row],[Backwaren]]","v":0},{"$f":"SUMIF(DBS_2[],AAA_8[[#This Row],[Mehlkosten]],DBS_2[Wert])","v":0},{"$f":"_xlfn.RANK.EQ(AAA_8[[#This Row],[Anzahl]],AAA_8[Anzahl],0)","v":3}]